[Event "41st Jacques-Lemans-Open 2022"]
[Site "St. Veit/Glan"]
[Date "2022.07.16"]
[Round "9.26"]
[White "Bauer, Thomas"]
[Black "Ljubic, Luka"]
[Result "1-0"]
[ECO "B31"]
[WhiteElo "2228"]
[BlackElo "1768"]
[Annotator "ChessBase"]
[PlyCount "169"]
[EventDate "2022.07.09"]
[EventType "swiss"]
[EventCountry "AUT"]
[SourceTitle "playchess.com"]
[Source "ChessBase"]
[SourceQuality "1"]
[TimeControl "40/5400+30:1800+30"]

1. e4 {[%emt 0:00:46]} c5 {[%emt 0:00:10]} 2. Nf3 {[%emt 0:00:11]} Nc6 {[%emt 0:00:10]} 3. Bb5 {[%emt 0:00:05]} g6 {[%emt 0:00:37]} 4. Bxc6 {[%emt 0:01:01]} dxc6 {[%emt 0:00:08]} 5. d3 {[%emt 0:00:43]} Bg7 {[%emt 0:00:16]} 6. a4 {[%emt 0:00:01]} Qc7 {[%emt 0:01:03]} 7. a5 {[%emt 0:00:46]} Nf6 {[%emt 0:02:52]} 8. O-O {[%emt 0:00:03]} O-O {[%emt 0:03:20]} 9. Re1 {[%emt 0:05:54]} Rd8 {[%emt 0:05:23]} 10. Qe2 {[%emt 0:04:58]} Nd7 {[%emt 0:05:31]} 11. e5 {[%emt 0:01:43]} Nf8 {[%emt 0:04:51]} 12. Qe4 {[%emt 0:07:11]} Be6 {[%emt 0:10:26]} 13. Qh4 {[%emt 0:04:58]} Bd5 {[%emt 0:10:47]} 14. Nbd2 {[%emt 0:01:31]} Bxf3 {[%emt 0:13:10]} 15. Nxf3 {[%emt 0:00:05]} Ne6 {[%emt 0:00:07]} 16. Ra4 {[%emt 0:20:30]} Nd4 {[%emt 0:08:33]} 17. Bf4 {[%emt 0:08:07]} Nxf3+ {[%emt 0:07:22]} 18. gxf3 {[%emt 0:00:02]} e6 {[%emt 0:02:17]} 19. a6 {[%emt 0:03:53]} b5 {[%emt 0:03:00]} 20. Raa1 {[%emt 0:01:05]} Rd4 {[%emt 0:02:11]} 21. Qg3 {[%emt 0:04:40]} Rd5 {[%emt 0:04:19]} 22. Re4 {[%emt 0:03:55]} Rad8 {[%emt 0:02:26]} 23. Bg5 {[%emt 0:03:37]} R8d7 {[%emt 0:01:58]} 24. f4 {[%emt 0:00:59]} Rd4 {[%emt 0:03:58]} 25. Rxd4 {[%emt 0:07:51]} Rxd4 {[%emt 0:01:34]} 26. Qe3 {[%emt 0:00:50]} Qd7 {[%emt 0:01:10]} 27. b3 Qd5 {[%emt 0:00:47]} 28. Be7 {[%emt 0:06:58]} Bh6 {[%emt 0:01:30]} 29. c4 {[%emt 0:02:05]} Qd7 {[%emt 0:01:09]} 30. Bd6 {[%emt 0:05:38]} Bf8 {[%emt 0:02:32]} 31. cxb5 {[%emt 0:01:03]} Bxd6 {[%emt 0:00:46]} 32. bxc6 {[%emt 0:03:27]} Qxc6 {[%emt 0:00:06]} 33. exd6 {[%emt 0:00:13]} Qxd6 {[%emt 0:00:09]} 34. Rc1 {[%emt 0:02:00]} Rxd3 {[%emt 0:01:48]} 35. Qxc5 {[%emt 0:00:27]} Qxf4 {[%emt 0:00:16]} 36. Qc4 {[%emt 0:00:38]} Qg5+ {[%emt 0:00:47]} 37. Kf1 {[%emt 0:00:14]} Rxb3 {[%emt 0:00:52]} 38. h4 {[%emt 0:00:41]} Qb5 {[%emt 0:00:37]} 39. Qxb5 {[%emt 0:00:31]} Rxb5 {[%emt 0:00:05]} 40. Rc7 {[%emt 0:00:05]} Rh5 {[%emt 0:00:00]} 41. Rxa7 {[%emt 0:12:44]} Rxh4 {[%emt 0:05:28]} 42. Rc7 {[%emt 0:10:13]} Ra4 {[%emt 0:01:22]} 43. a7 {[%emt 0:01:52]} Kg7 {[%emt 0:00:08]} 44. Kg2 {[%emt 0:00:33]} e5 {[%emt 0:07:51]} 45. Kg3 {[%emt 0:00:01]} h5 {[%emt 0:02:34]} 46. Kh3 {[%emt 0:00:03]} Kf6 {[%emt 0:01:01]} 47. Kg3 {[%emt 0:00:56]} g5 {[%emt 0:00:27]} 48. Kf3 {[%emt 0:00:58]} Kg6 {[%emt 0:00:27]} 49. Kg3 {[%emt 0:01:16]} f6 {[%emt 0:00:18]} 50. Kf3 {[%emt 0:00:16]} Kf5 {[%emt 0:00:15]} 51. Kg2 {[%emt 0:00:55]} Kf4 {[%emt 0:00:38]} 52. Rc4+ {[%emt 0:01:03]} Rxc4 {[%emt 0:02:59]} 53. a8=Q {[%emt 0:00:03]} Rc3 {[%emt 0:04:27]} 54. Qf8 {[%emt 0:02:32]} Kf5 {[%emt 0:01:15]} 55. Qb4 {[%emt 0:00:01]} Rd3 {[%emt 0:01:37]} 56. Qb1 {[%emt 0:01:42]} e4 {[%emt 0:00:06]} 57. Qb5+ {[%emt 0:00:01]} Kg4 {[%emt 0:01:26]} 58. Qe8 {[%emt 0:03:59]} f5 {[%emt 0:00:29]} 59. Kf1 {[%emt 0:00:25]} h4 {[%emt 0:00:47]} 60. Qe5 {[%emt 0:00:33]} Rd1+ {[%emt 0:05:43]} 61. Kg2 {[%emt 0:00:46]} Rd3 {[%emt 0:01:11]} 62. Kf1 {[%emt 0:00:14]} h3 {[%emt 0:01:04]} 63. Ke2 {[%emt 0:00:25]} Rb3 {[%emt 0:00:39]} 64. Qh2 {[%emt 0:00:34]} f4 {[%emt 0:00:40]} 65. Qg1+ {[%emt 0:00:53]} Kh4 {[%emt 0:00:06]} 66. Qa1 {[%emt 0:00:26]} Rd3 {[%emt 0:00:57]} 67. Qh8+ {[%emt 0:00:28]} Kg4 {[%emt 0:00:05]} 68. Qc8+ {[%emt 0:00:32]} Kh4 {[%emt 0:00:33]} 69. Qh8+ {[%emt 0:00:31]} Kg4 {[%emt 0:00:08]} 70. Qc8+ {[%emt 0:00:27]} Kh4 {[%emt 0:00:16]} 71. Qf5 {[%emt 0:00:34]} f3+ {[%emt 0:01:27]} 72. Ke1 {[%emt 0:00:02]} Rd4 {[%emt 0:00:26]} 73. Qe5 {[%emt 0:00:48]} Rb4 {[%emt 0:00:20]} 74. Qg3+ {[%emt 0:00:30]} Kh5 {[%emt 0:00:13]} 75. Qxh3+ {[%emt 0:00:02]} Kg6 {[%emt 0:00:07]} 76. Qe6+ {[%emt 0:00:02]} Kh5 {[%emt 0:00:27]} 77. Qf7+ {[%emt 0:01:08]} Kg4 {[%emt 0:00:12]} 78. Qd7+ {[%emt 0:00:04]} Kh5 {[%emt 0:00:10]} 79. Qe8+ {[%emt 0:01:00]} Kg4 {[%emt 0:00:08]} 80. Qc8+ {[%emt 0:00:04]} Kh4 {[%emt 0:01:07]} 81. Qc3 {[%emt 0:00:25]} Rb1+ {[%emt 0:01:03]} 82. Kd2 {[%emt 0:00:01]} Rg1 {[%emt 0:00:37]} 83. Ke3 {[%emt 0:00:49]} Kh3 {[%emt 0:00:36]} 84. Kxe4 {[%emt 0:01:06]} Kg2 {[%emt 0:00:25]} 85. Qxf3+ {[%emt 0:00:27]} 1-0

[Event "41st Jacques-Lemans-Open 2022"]
[Site "St. Veit/Glan"]
[Date "2022.07.16"]
[Round "9.27"]
[White "Stadlinger, Matthias"]
[Black "Praznik, Anton"]
[Result "0-1"]
[ECO "A69"]
[WhiteElo "1975"]
[BlackElo "2137"]
[Annotator "ChessBase"]
[PlyCount "80"]
[EventDate "2022.07.09"]
[EventType "swiss"]
[EventCountry "AUT"]
[SourceTitle "playchess.com"]
[Source "ChessBase"]
[SourceQuality "1"]
[TimeControl "40/5400+30:1800+30"]

1. d4 {[%emt 0:00:03]} Nf6 {[%emt 0:02:28]} 2. c4 {[%emt 0:00:12]} c5 {[%emt 0:01:44]} 3. d5 {[%emt 0:00:06]} g6 {[%emt 0:00:19]} 4. Nc3 {[%emt 0:00:07]} d6 {[%emt 0:00:07]} 5. e4 {[%emt 0:00:07]} Bg7 {[%emt 0:00:15]} 6. f4 {[%emt 0:00:20]} O-O {[%emt 0:01:33]} 7. Nf3 {[%emt 0:00:05]} e6 {[%emt 0:01:13]} 8. Be2 {[%emt 0:00:15]} exd5 {[%emt 0:00:43]} 9. cxd5 {[%emt 0:00:13]} Re8 {[%emt 0:04:42]} 10. e5 {[%emt 0:00:39]} dxe5 {[%emt 0:00:17]} 11. fxe5 {[%emt 0:00:03]} Ng4 {[%emt 0:00:15]} 12. Bg5 {[%emt 0:00:13]} Qb6 {[%emt 0:01:05]} 13. O-O {[%emt 0:00:23]} Nxe5 {[%emt 0:01:51]} 14. d6 {[%emt 0:04:33]} Be6 {[%emt 0:21:10]} 15. Bb5 {[%emt 0:54:12]} Nbd7 {[%emt 0:13:00]} 16. Bxd7 {[%emt 0:11:25]} Nxd7 {[%emt 0:03:55]} 17. Nd5 {[%emt 0:01:42]} Qxb2 {[%emt 0:01:37]} 18. Rb1 {[%emt 0:02:52]} Qxa2 {[%emt 0:00:53]} 19. Ne7+ {[%emt 0:02:32]} Kh8 {[%emt 0:06:26]} 20. Rxb7 {[%emt 0:02:40]} Rab8 {[%emt 0:02:12]} 21. Rc7 {[%emt 0:00:22]} h6 {[%emt 0:01:40]} 22. Be3 {[%emt 0:00:57]} Rb2 {[%emt 0:03:16]} 23. Nh4 {[%emt 0:08:21]} Kh7 {[%emt 0:05:39]} 24. Qf3 {[%emt 0:03:25]} Rb1 {[%emt 0:04:22]} 25. Rxb1 {[%emt 0:04:33]} Qxb1+ {[%emt 0:00:02]} 26. Qf1 {[%emt 0:00:04]} Qxf1+ {[%emt 0:04:16]} 27. Kxf1 {[%emt 0:00:10]} Be5 {[%emt 0:00:56]} 28. Rxa7 {[%emt 0:00:26]} Bxd6 {[%emt 0:00:26]} 29. Nc6 {[%emt 0:00:25]} Rc8 {[%emt 0:02:50]} 30. Na5 {[%emt 0:00:34]} c4 {[%emt 0:00:48]} 31. Nf3 {[%emt 0:00:20]} Bc5 {[%emt 0:01:58]} 32. Bxc5 {[%emt 0:00:26]} Nxc5 {[%emt 0:01:07]} 33. Nd4 {[%emt 0:00:09]} Bd5 {[%emt 0:02:06]} 34. g3 {[%emt 0:00:49]} Kg7 {[%emt 0:00:35]} 35. Re7 {[%emt 0:01:38]} Ne6 {[%emt 0:02:34]} 36. Nxe6+ {[%emt 0:01:23]} Bxe6 {[%emt 0:00:03]} 37. Ke1 {[%emt 0:00:24]} Ra8 {[%emt 0:03:20]} 38. Nc6 {[%emt 0:00:33]} c3 {[%emt 0:01:50]} 39. Nd4 {[%emt 0:00:07]} Ra1+ {[%emt 0:02:11]} 40. Kf2 {[%emt 0:00:23]} c2 {[%emt 0:00:28]} 0-1

[Event "41st Jacques-Lemans-Open 2022"]
[Site "St. Veit/Glan"]
[Date "2022.07.16"]
[Round "9.28"]
[White "Elpons, Walter"]
[Black "Wegerer, Fred"]
[Result "0-1"]
[ECO "A41"]
[WhiteElo "1952"]
[BlackElo "2137"]
[Annotator "ChessBase"]
[PlyCount "62"]
[EventDate "2022.07.09"]
[EventType "swiss"]
[EventCountry "AUT"]
[SourceTitle "playchess.com"]
[Source "ChessBase"]
[SourceQuality "1"]
[TimeControl "40/5400+30:1800+30"]

1. d4 {[%emt 0:00:16]} d6 {[%emt 0:00:49]} 2. e4 {[%emt 0:02:49]} g6 {[%emt 0:01:22]} 3. Nf3 {[%emt 0:02:42]} Bg7 {[%emt 0:00:06]} 4. Be2 {[%emt 0:01:51]} Nd7 {[%emt 0:02:02]} 5. Nc3 {[%emt 0:02:37]} a6 {[%emt 0:00:24]} 6. Be3 {[%emt 0:00:59]} e6 {[%emt 0:06:37]} 7. Qd2 {[%emt 0:01:50]} Ne7 {[%emt 0:00:27]} 8. h4 {[%emt 0:04:51]} h5 {[%emt 0:01:04]} 9. Ng5 {[%emt 0:01:23]} Nf8 {[%emt 0:16:02]} 10. O-O-O {[%emt 0:03:56]} f6 {[%emt 0:00:10]} 11. Nh3 {[%emt 0:01:01]} c6 {[%emt 0:02:38]} 12. f4 {[%emt 0:02:03]} d5 {[%emt 0:04:19]} 13. Nf2 {[%emt 0:05:34]} b5 {[%emt 0:01:33]} 14. exd5 {[%emt 0:04:28]} exd5 {[%emt 0:05:51]} 15. Nd3 {[%emt 0:01:52]} Bf5 {[%emt 0:08:28]} 16. Rde1 {[%emt 0:04:58]} Ne6 {[%emt 0:02:15]} 17. Bf2 {[%emt 0:02:02]} Kf7 {[%emt 0:05:58]} 18. Nc5 {[%emt 0:01:30]} Nxc5 {[%emt 0:01:34]} 19. dxc5 {[%emt 0:02:50]} Qd7 {[%emt 0:02:00]} 20. Bd3 {[%emt 0:01:59]} Rhe8 {[%emt 0:01:43]} 21. Ne2 {[%emt 0:03:34]} Bxd3 {[%emt 0:00:56]} 22. Qxd3 {[%emt 0:01:00]} Nf5 {[%emt 0:00:30]} 23. Nd4 {[%emt 0:02:48]} Nxd4 {[%emt 0:00:18]} 24. Bxd4 {[%emt 0:00:25]} Qg4 {[%emt 0:00:41]} 25. g3 {[%emt 0:00:41]} Re6 {[%emt 0:02:26]} 26. Bf2 {[%emt 0:02:17]} Rae8 {[%emt 0:03:01]} 27. Kd2 {[%emt 0:08:00]} Re4 {[%emt 0:10:26]} 28. c3 {[%emt 0:05:02]} Bh6 {[%emt 0:02:43]} 29. Bd4 {[%emt 0:07:01]} Qf5 {[%emt 0:03:35]} 30. Rhf1 {[%emt 0:04:56]} Rxe1 {[%emt 0:00:23]} 31. Qxf5 {[%emt 0:00:23]} R8e2+ {[%emt 0:00:25]} 0-1

[Event "41st Jacques-Lemans-Open 2022"]
[Site "St. Veit/Glan"]
[Date "2022.07.16"]
[Round "9.29"]
[White "Holzmann, Herbert"]
[Black "Wiedner, Robert"]
[Result "1/2-1/2"]
[ECO "A30"]
[WhiteElo "1979"]
[BlackElo "2133"]
[Annotator "ChessBase"]
[PlyCount "28"]
[EventDate "2022.07.09"]
[EventType "swiss"]
[EventCountry "AUT"]
[SourceTitle "playchess.com"]
[Source "ChessBase"]
[SourceQuality "1"]
[TimeControl "40/5400+30:1800+30"]

1. Nf3 {[%emt 0:00:04]} Nf6 {[%emt 0:01:09]} 2. c4 {[%emt 0:00:12]} b6 {[%emt 0:01:24]} 3. g3 {[%emt 0:03:33]} Bb7 {[%emt 0:00:26]} 4. Bg2 {[%emt 0:00:09]} e6 {[%emt 0:04:18]} 5. O-O {[%emt 0:02:15]} c5 {[%emt 0:01:24]} 6. Nc3 {[%emt 0:02:13]} Be7 {[%emt 0:00:33]} 7. e3 {[%emt 0:03:43]} O-O {[%emt 0:02:07]} 8. b3 {[%emt 0:08:47]} d5 {[%emt 0:01:08]} 9. cxd5 {[%emt 0:01:08]} Nxd5 {[%emt 0:00:15]} 10. Bb2 {[%emt 0:00:57]} Bf6 {[%emt 0:00:22]} 11. d4 {[%emt 0:08:02]} cxd4 {[%emt 0:00:21]} 12. Nxd4 {[%emt 0:00:31]} Nxc3 {[%emt 0:00:19]} 13. Bxc3 {[%emt 0:01:12]} Bxg2 {[%emt 0:00:09]} 14. Kxg2 {[%emt 0:00:05]} Qd5+ {[%emt 0:02:16]} 1/2-1/2

[Event "41st Jacques-Lemans-Open 2022"]
[Site "St. Veit/Glan"]
[Date "2022.07.16"]
[Round "9.30"]
[White "Zaytsev, Alexander"]
[Black "Schippel, Gert"]
[Result "1-0"]
[ECO "B48"]
[WhiteElo "1963"]
[BlackElo "2106"]
[Annotator "ChessBase"]
[PlyCount "63"]
[EventDate "2022.07.09"]
[EventType "swiss"]
[EventCountry "AUT"]
[SourceTitle "playchess.com"]
[Source "ChessBase"]
[SourceQuality "1"]
[TimeControl "40/5400+30:1800+30"]

1. e4 {[%emt 0:00:02]} c5 {[%emt 0:00:12]} 2. Nf3 {[%emt 0:00:12]} e6 {[%emt 0:00:06]} 3. d4 {[%emt 0:00:08]} cxd4 {[%emt 0:00:07]} 4. Nxd4 {[%emt 0:00:08]} Nc6 {[%emt 0:00:12]} 5. Nc3 {[%emt 0:00:12]} Qc7 {[%emt 0:00:09]} 6. Be3 {[%emt 0:00:57]} a6 {[%emt 0:00:07]} 7. Qd2 {[%emt 0:00:27]} Nf6 {[%emt 0:00:21]} 8. f3 {[%emt 0:04:29]} Bb4 {[%emt 0:07:00]} 9. a3 {[%emt 0:04:44]} Be7 {[%emt 0:03:05]} 10. Be2 {[%emt 0:05:18]} O-O {[%emt 0:01:18]} 11. g4 {[%emt 0:07:21]} b5 {[%emt 0:16:10]} 12. Kf2 {[%emt 0:19:30]} Bb7 {[%emt 0:11:11]} 13. h4 {[%emt 0:05:05]} Ne5 {[%emt 0:11:05]} 14. h5 {[%emt 0:07:43]} b4 {[%emt 0:13:49]} 15. axb4 {[%emt 0:05:41]} Bxb4 {[%emt 0:00:01]} 16. Rag1 {[%emt 0:09:53]} d5 {[%emt 0:10:51]} 17. g5 {[%emt 0:02:49]} Ne8 {[%emt 0:00:33]} 18. exd5 {[%emt 0:01:51]} Bxd5 {[%emt 0:00:45]} 19. Nxd5 {[%emt 0:02:24]} Bxd2 {[%emt 0:00:12]} 20. Nxc7 {[%emt 0:00:07]} Bxe3+ {[%emt 0:00:05]} 21. Kxe3 {[%emt 0:00:22]} Nxc7 {[%emt 0:00:13]} 22. c4 {[%emt 0:01:43]} Rfb8 {[%emt 0:02:38]} 23. f4 {[%emt 0:03:31]} Nd7 {[%emt 0:09:27]} 24. Bf3 {[%emt 0:00:30]} Rxb2 {[%emt 0:00:09]} 25. Bxa8 {[%emt 0:00:42]} Nxa8 {[%emt 0:00:02]} 26. Rb1 {[%emt 0:01:32]} Rxb1 {[%emt 0:02:39]} 27. Rxb1 {[%emt 0:00:04]} Nab6 {[%emt 0:00:04]} 28. c5 {[%emt 0:03:43]} Nd5+ {[%emt 0:01:05]} 29. Kf3 {[%emt 0:01:18]} Kf8 {[%emt 0:00:28]} 30. c6 {[%emt 0:03:30]} Nc5 {[%emt 0:00:41]} 31. Rc1 {[%emt 0:01:36]} Nd3 {[%emt 0:05:00]} 32. c7 {[%emt 0:00:57]} 1-0

[Event "41st Jacques-Lemans-Open 2022"]
[Site "St. Veit/Glan"]
[Date "2022.07.16"]
[Round "9.31"]
[White "Enne, Harald"]
[Black "Guetz, Wolfgang"]
[Result "1/2-1/2"]
[ECO "E81"]
[WhiteElo "1919"]
[BlackElo "2034"]
[Annotator "ChessBase"]
[PlyCount "109"]
[EventDate "2022.07.09"]
[EventType "swiss"]
[EventCountry "AUT"]
[SourceTitle "playchess.com"]
[Source "ChessBase"]
[SourceQuality "1"]
[TimeControl "40/5400+30:1800+30"]

1. d4 {[%emt 0:00:03]} Nf6 {[%emt 0:00:03]} 2. c4 {[%emt 0:00:05]} g6 {[%emt 0:00:04]} 3. Nc3 {[%emt 0:00:04]} Bg7 {[%emt 0:00:05]} 4. e4 {[%emt 0:00:15]} d6 {[%emt 0:00:05]} 5. f3 {[%emt 0:00:51]} O-O {[%emt 0:00:07]} 6. Be3 {[%emt 0:00:03]} c5 {[%emt 0:00:45]} 7. Nge2 {[%emt 0:00:49]} Nc6 {[%emt 0:07:14]} 8. Qd2 {[%emt 0:05:19]} Qa5 {[%emt 0:06:08]} 9. d5 {[%emt 0:16:50]} Ne5 {[%emt 0:01:55]} 10. Nc1 {[%emt 0:01:05]} a6 {[%emt 0:09:57]} 11. Be2 {[%emt 0:07:03]} Rb8 {[%emt 0:18:24]} 12. a3 {[%emt 0:11:14]} Rd8 {[%emt 0:07:26]} 13. h3 {[%emt 0:02:45]} Ned7 {[%emt 0:09:33]} 14. f4 {[%emt 0:09:33]} b5 {[%emt 0:04:59]} 15. Nb3 {[%emt 0:25:51]} Qb6 {[%emt 0:01:26]} 16. cxb5 {[%emt 0:00:11]} axb5 {[%emt 0:00:07]} 17. O-O {[%emt 0:04:34]} b4 {[%emt 0:04:29]} 18. axb4 {[%emt 0:01:24]} Qxb4 {[%emt 0:00:23]} 19. Na5 {[%emt 0:03:34]} Nxe4 {[%emt 0:10:21]} 20. Nxe4 {[%emt 0:00:35]} Qxe4 {[%emt 0:00:05]} 21. Bf3 {[%emt 0:00:21]} Qb4 {[%emt 0:05:38]} 22. Qxb4 {[%emt 0:02:05]} Rxb4 {[%emt 0:00:17]} 23. Nc6 {[%emt 0:01:16]} Re8 {[%emt 0:04:19]} 24. Nxb4 {[%emt 0:00:13]} cxb4 {[%emt 0:00:01]} 25. Ra4 {[%emt 0:01:30]} Bxb2 {[%emt 0:01:38]} 26. Rxb4 {[%emt 0:00:08]} Ba3 {[%emt 0:01:08]} 27. Ra4 {[%emt 0:00:07]} Bc5 {[%emt 0:00:18]} 28. Bxc5 {[%emt 0:00:28]} Nxc5 {[%emt 0:00:01]} 29. Ra8 {[%emt 0:00:41]} Bd7 {[%emt 0:00:16]} 30. Rxe8+ {[%emt 0:00:42]} Bxe8 {[%emt 0:00:01]} 31. Rb1 {[%emt 0:00:52]} Kg7 {[%emt 0:01:18]} 32. Kf2 {[%emt 0:00:19]} h5 {[%emt 0:00:24]} 33. Ke3 {[%emt 0:00:35]} Kf6 {[%emt 0:01:53]} 34. g4 {[%emt 0:00:31]} hxg4 {[%emt 0:00:06]} 35. hxg4 {[%emt 0:00:05]} Bd7 {[%emt 0:03:29]} 36. Rb6 {[%emt 0:00:32]} Na4 {[%emt 0:01:01]} 37. Rb7 {[%emt 0:00:47]} Nc5 {[%emt 0:00:04]} 38. Ra7 {[%emt 0:00:51]} e6 {[%emt 0:01:53]} 39. Kd4 {[%emt 0:02:58]} Nb3+ {[%emt 0:01:50]} 40. Ke3 {[%emt 0:01:29]} Nc5 {[%emt 0:00:03]} 41. Rc7 {[%emt 0:05:52]} g5 {[%emt 0:02:25]} 42. fxg5+ {[%emt 0:04:22]} Kxg5 {[%emt 0:00:55]} 43. dxe6 {[%emt 0:00:34]} Bxe6 {[%emt 0:02:04]} 44. Rc6 {[%emt 0:00:32]} Bxg4 {[%emt 0:01:45]} 45. Bxg4 {[%emt 0:01:09]} Kxg4 {[%emt 0:00:16]} 46. Rxd6 {[%emt 0:00:11]} Ne6 {[%emt 0:01:09]} 47. Ke4 {[%emt 0:03:54]} Kg5 {[%emt 0:03:55]} 48. Ke5 {[%emt 0:03:28]} Kg6 {[%emt 0:01:18]} 49. Rd1 {[%emt 0:03:08]} Ng5 {[%emt 0:04:46]} 50. Rf1 {[%emt 0:00:32]} Ne6 {[%emt 0:01:19]} 51. Rf5 {[%emt 0:04:54]} Ng5 {[%emt 0:03:18]} 52. Rf6+ {[%emt 0:00:14]} Kg7 {[%emt 0:00:06]} 53. Kf5 {[%emt 0:00:23]} Ne6 {[%emt 0:00:39]} 54. Rxe6 {[%emt 0:01:43]} fxe6+ {[%emt 0:00:02]} 55. Kxe6 {[%emt 0:00:04]} 1/2-1/2

[Event "41st Jacques-Lemans-Open 2022"]
[Site "St. Veit/Glan"]
[Date "2022.07.16"]
[Round "9.32"]
[White "Wallner, Dieter"]
[Black "Vlasak, Reinhard"]
[Result "1/2-1/2"]
[ECO "A45"]
[WhiteElo "2018"]
[BlackElo "1915"]
[Annotator "ChessBase"]
[PlyCount "34"]
[EventDate "2022.07.09"]
[EventType "swiss"]
[EventCountry "AUT"]
[SourceTitle "playchess.com"]
[Source "ChessBase"]
[SourceQuality "1"]
[TimeControl "40/5400+30:1800+30"]

1. d4 {[%emt 0:00:05]} Nf6 {[%emt 0:00:18]} 2. Nc3 {[%emt 0:00:11]} d5 {[%emt 0:00:38]} 3. Bf4 {[%emt 0:00:12]} e6 {[%emt 0:01:03]} 4. Nb5 {[%emt 0:00:12]} Na6 {[%emt 0:00:45]} 5. e3 {[%emt 0:00:08]} c6 {[%emt 0:00:59]} 6. Nc3 {[%emt 0:00:08]} b6 {[%emt 0:01:33]} 7. h4 {[%emt 0:01:55]} Bd6 {[%emt 0:03:29]} 8. h5 {[%emt 0:12:35]} Bxf4 {[%emt 0:01:33]} 9. exf4 {[%emt 0:00:06]} h6 {[%emt 0:00:08]} 10. Nf3 {[%emt 0:01:15]} O-O {[%emt 0:10:24]} 11. Ne5 {[%emt 0:04:22]} c5 {[%emt 0:00:58]} 12. g4 {[%emt 0:03:25]} Ne4 {[%emt 0:02:11]} 13. Nxe4 {[%emt 0:01:25]} dxe4 {[%emt 0:00:13]} 14. dxc5 {[%emt 0:00:59]} Nxc5 {[%emt 0:01:32]} 15. Qxd8 {[%emt 0:01:37]} Rxd8 {[%emt 0:00:14]} 16. Rh3 {[%emt 0:11:45]} Bb7 {[%emt 0:12:05]} 17. Rd1 {[%emt 0:00:53]} Rxd1+ {[%emt 0:02:57]} 1/2-1/2

[Event "41st Jacques-Lemans-Open 2022"]
[Site "St. Veit/Glan"]
[Date "2022.07.16"]
[Round "9.33"]
[White "Stadlinger, Lea"]
[Black "Moewisch, Dave"]
[Result "1/2-1/2"]
[ECO "A45"]
[WhiteElo "1723"]
[BlackElo "1941"]
[Annotator "ChessBase"]
[PlyCount "95"]
[EventDate "2022.07.09"]
[EventType "swiss"]
[EventCountry "AUT"]
[SourceTitle "playchess.com"]
[Source "ChessBase"]
[SourceQuality "1"]
[TimeControl "40/5400+30:1800+30"]

1. d4 {[%emt 0:00:03]} Nf6 {[%emt 0:00:11]} 2. Nc3 {[%emt 0:00:16]} d5 {[%emt 0:00:38]} 3. Bf4 {[%emt 0:00:22]} c5 {[%emt 0:01:22]} 4. e3 {[%emt 0:02:28]} a6 {[%emt 0:01:14]} 5. Nf3 {[%emt 0:03:25]} Bg4 {[%emt 0:05:44]} 6. h3 {[%emt 0:05:35]} Bh5 {[%emt 0:05:03]} 7. Be2 {[%emt 0:01:57]} e6 {[%emt 0:02:05]} 8. O-O {[%emt 0:02:02]} Bxf3 {[%emt 0:05:09]} 9. Bxf3 {[%emt 0:00:42]} cxd4 {[%emt 0:00:11]} 10. exd4 {[%emt 0:01:31]} Bd6 {[%emt 0:00:30]} 11. Ne2 {[%emt 0:05:32]} Nc6 {[%emt 0:02:20]} 12. Qd2 {[%emt 0:17:33]} O-O {[%emt 0:03:27]} 13. Rac1 {[%emt 0:02:06]} b5 {[%emt 0:03:57]} 14. Bxd6 {[%emt 0:02:23]} Qxd6 {[%emt 0:00:10]} 15. b3 {[%emt 0:01:37]} Rac8 {[%emt 0:07:59]} 16. Rfd1 {[%emt 0:05:37]} Rc7 {[%emt 0:04:13]} 17. c4 {[%emt 0:01:52]} bxc4 {[%emt 0:03:50]} 18. bxc4 {[%emt 0:00:14]} dxc4 {[%emt 0:02:32]} 19. Rxc4 {[%emt 0:01:23]} Rfc8 {[%emt 0:02:36]} 20. Bxc6 {[%emt 0:06:18]} Rxc6 {[%emt 0:02:17]} 21. Rxc6 {[%emt 0:01:59]} Rxc6 {[%emt 0:00:29]} 22. Rc1 {[%emt 0:03:54]} h6 {[%emt 0:07:27]} 23. Rxc6 {[%emt 0:00:38]} Qxc6 {[%emt 0:00:05]} 24. Qc3 {[%emt 0:00:51]} Qb5 {[%emt 0:05:00]} 25. Qc8+ {[%emt 0:09:09]} Kh7 {[%emt 0:00:09]} 26. Qc2+ {[%emt 0:00:08]} g6 {[%emt 0:00:27]} 27. Kh2 {[%emt 0:03:21]} Nd5 {[%emt 0:05:47]} 28. a3 {[%emt 0:10:07]} h5 {[%emt 0:02:09]} 29. g3 {[%emt 0:02:48]} Qa5 {[%emt 0:06:51]} 30. Qd3 {[%emt 0:00:32]} Qe1 {[%emt 0:00:46]} 31. Kg2 {[%emt 0:00:48]} a5 {[%emt 0:01:08]} 32. Qf3 {[%emt 0:04:54]} Kg7 {[%emt 0:00:24]} 33. Nf4 {[%emt 0:00:56]} Qc3 {[%emt 0:06:42]} 34. Nxd5 {[%emt 0:01:20]} Qxf3+ {[%emt 0:00:07]} 35. Kxf3 {[%emt 0:00:05]} exd5 {[%emt 0:00:03]} 36. h4 {[%emt 0:01:55]} f6 {[%emt 0:01:02]} 37. Ke3 {[%emt 0:01:12]} Kf7 {[%emt 0:00:27]} 38. f4 {[%emt 0:00:22]} Ke6 {[%emt 0:11:33]} 39. Kf3 {[%emt 0:01:07]} Kf5 {[%emt 0:01:05]} 40. a4 {[%emt 0:00:24]} g5 {[%emt 0:00:10]} 41. fxg5 {[%emt 0:02:34]} fxg5 {[%emt 0:00:23]} 42. hxg5 {[%emt 0:01:56]} Kxg5 {[%emt 0:00:04]} 43. Kf2 {[%emt 0:01:37]} Kf6 {[%emt 0:04:16]} 44. Ke3 {[%emt 0:01:14]} Kg5 {[%emt 0:00:28]} 45. Kf2 {[%emt 0:00:08]} Kg4 {[%emt 0:02:52]} 46. Kg2 {[%emt 0:00:14]} Kf5 {[%emt 0:00:17]} 47. Kf3 {[%emt 0:00:11]} Kg5 {[%emt 0:00:13]} 48. Kf2 {[%emt 0:00:07]} 1/2-1/2